bitfinex/quotes_BTCUSD_20250218
["timestamp","ask_amount","ask_price","bid_price","bid_amount"]
[1739900447801,0.00013257,94641.0,94640.0,0.19967916]
[1739900447917,0.00030247,94641.0,94640.0,0.19967916]
[1739900448122,0.00030247,94641.0,94640.0,0.48747847]
[1739900448327,0.00030247,94641.0,94640.0,0.48642221]
[1739900449356,0.00030247,94641.0,94640.0,0.59812221]
[1739900449552,0.00030247,94641.0,94640.0,0.48642221]
[1739900449961,0.00030247,94641.0,94640.0,0.46642221]
[1739900450161,0.00030247,94641.0,94640.0,0.48642221]
[1739900450825,0.00030247,94641.0,94640.0,0.99507221]
[1739900452174,0.00030247,94641.0,94640.0,0.98807221]
[1739900452427,0.00030247,94641.0,94640.0,0.48642221]
[1739900452638,0.00030247,94641.0,94640.0,0.63791721]
[1739900452842,0.00030247,94641.0,94640.0,0.47942221]
[1739900453044,0.00030247,94641.0,94640.0,0.46342221]
[1739900453243,0.00030247,94641.0,94640.0,0.45642221]
[1739900453715,0.00030247,94641.0,94640.0,0.46342221]
[1739900454098,0.00030247,94641.0,94640.0,0.61491721]
[1739900454477,0.00030247,94641.0,94640.0,0.63791721]
[1739900454678,0.00030247,94641.0,94640.0,0.98807221]
[1739900455086,0.158447,94669.0,94650.0,0.02]
[1739900455383,0.158444,94671.0,94651.0,0.39135913]
[1739900455651,0.00249151,94668.0,94652.0,0.05898451]
[1739900455786,0.00249265,94670.0,94653.0,0.10355977]
[1739900455990,0.211248,94676.0,94653.0,0.10355977]
[1739900456197,0.00249148,94669.0,94653.0,0.10355977]
[1739900456395,0.158599,94680.0,94657.0,0.02]
[1739900456623,0.21124,94679.0,94658.0,0.12355976]
[1739900456821,0.158434,94677.0,94658.0,0.12355976]
[1739900457053,0.158434,94677.0,94658.0,0.41135907]
[1739900457257,0.00249546,94676.0,94659.0,0.04812415]
[1739900457450,0.158439,94674.0,94660.0,0.10355972]
[1739900457626,0.00061207,94680.0,94660.0,0.10250365]
[1739900457831,0.16093563,94673.0,94661.0,0.00105607]
[1739900458036,0.158439,94674.0,94662.0,0.14845197]
[1739900458440,0.00249563,94673.0,94662.0,0.14845197]
[1739900458801,0.158436,94675.0,94662.0,0.14845197]
[1739900459008,0.00249504,94672.0,94662.0,0.14845197]
[1739900459210,0.158441,94673.0,94662.0,0.14845197]
[1739900459404,0.00249507,94671.0,94663.0,0.04632513]
[1739900459614,0.00249573,94672.0,94663.0,0.04632513]
[1739900459866,0.00249651,94671.0,94662.0,0.10950365]
[1739900460034,0.00249651,94671.0,94660.0,0.28779931]
[1739900460208,0.158444,94671.0,94662.0,0.007]
[1739900460408,0.158456,94663.0,94662.0,0.007]
[1739900460774,0.00249196,94663.0,94660.0,0.28779931]
[1739900460929,0.00249196,94663.0,94661.0,0.02877993]
[1739900461133,0.1586172,94669.0,94663.0,0.007]
[1739900461330,0.158448,94668.0,94663.0,0.007]
[1739900461534,0.0001702,94669.0,94663.0,0.007]
[1739900461919,0.158455,94664.0,94663.0,0.007]
[1739900462940,0.21127,94666.0,94663.0,0.007]
[1739900463149,0.15846,94661.0,94660.0,0.28779931]
[1739900463549,0.1225,94668.0,94662.0,0.007]
[1739900463770,0.211266,94667.0,94642.0,0.28779931]
[1739900463972,0.1225,94668.0,94643.0,0.10355991]
[1739900464183,0.158455,94664.0,94663.0,0.007]
[1739900464386,0.21127,94666.0,94643.0,0.13495177]
[1739900464387,0.158459,94662.0,94643.0,0.13495177]
[1739900464654,0.158462,94660.0,94643.0,0.13495177]
[1739900464889,0.15846,94661.0,94660.0,0.007]
[1739900465087,0.1225,94668.0,94640.0,0.02611925]
[1739900465289,0.15,94667.0,94640.0,0.0010563]
[1739900465816,0.158471,94654.0,94640.0,0.0010563]
[1739900466020,0.15847,94655.0,94640.0,0.0010563]
[1739900466633,0.211275,94663.0,94635.0,0.00105638]
[1739900466749,0.158474,94653.0,94636.0,0.03091961]
[1739900466952,0.15,94667.0,94637.0,0.00105639]
[1739900467152,0.15,94656.0,94637.0,0.00105639]
[1739900467391,0.15847,94656.0,94637.0,0.00105639]
[1739900467729,0.15,94675.0,94640.0,0.007]
[1739900467929,0.15,94665.0,94641.0,0.0010563]
[1739900468504,0.15,94665.0,94641.0,0.10355995]
[1739900468704,0.15,94675.0,94642.0,0.18030365]
[1739900468907,0.001983,94664.0,94643.0,0.06415797]
[1739900469155,0.15,94675.0,94644.0,0.10250365]
[1739900469392,0.00198206,94663.0,94645.0,0.0010562]
[1739900469606,0.15,94675.0,94646.0,0.10250365]
[1739900469807,0.2,94695.0,94647.0,0.28885543]
[1739900470029,0.00199263,94674.0,94648.0,0.10250365]
[1739900470229,0.0454,94675.0,94649.0,0.04986641]
[1739900470405,0.0454,94675.0,94650.0,0.10250365]
[1739900470613,0.00199201,94674.0,94651.0,0.00105617]
[1739900470819,0.00199201,94674.0,94652.0,0.10250365]
[1739900471029,0.00199201,94674.0,94653.0,0.00105617]
[1739900471235,0.00199201,94674.0,94654.0,0.14652059]
[1739900471423,0.00199201,94674.0,94655.0,0.00105614]
[1739900471585,0.0454,94675.0,94655.0,0.10355979]
[1739900471785,0.21868,94674.0,94655.0,0.10355979]
[1739900471980,0.21868,94674.0,94655.0,0.10250365]
[1739900472236,0.00199156,94673.0,94656.0,0.01963871]
[1739900472401,0.00199156,94673.0,94656.0,0.02069488]
[1739900473229,0.0001702,94674.0,94657.0,0.10250365]
[1739900473430,0.00199156,94672.0,94658.0,0.08335609]
[1739900473774,0.00199111,94671.0,94659.0,0.13008923]
[1739900474377,0.0001702,94674.0,94659.0,0.13008923]
[1739900474580,0.00199065,94670.0,94660.0,0.00105614]
[1739900474883,0.0001702,94674.0,94661.0,0.10250365]
[1739900475153,0.0001702,94674.0,94662.0,0.00105613]
[1739900475328,0.0001702,94674.0,94663.0,0.12584819]
[1739900475502,0.0001702,94674.0,94664.0,0.00105599]
[1739900475706,0.0001702,94674.0,94665.0,0.10250365]
[1739900476153,0.00249209,94673.0,94665.0,0.10250365]
[1739900476570,0.0001702,94674.0,94658.0,0.0893]
[1739900476778,0.0001702,94674.0,94659.0,0.10250365]
[1739900476779,0.00249369,94672.0,94659.0,0.10250365]
[1739900476982,0.00221712,94673.0,94665.0,0.007]
[1739900477187,0.158451,94666.0,94665.0,0.007]
[1739900477396,0.0001702,94674.0,94654.0,0.04435734]
[1739900477610,0.00221358,94666.0,94665.0,0.007]
[1739900477832,0.308451,94666.0,94665.0,0.007]
[1739900478042,0.31094127,94666.0,94665.0,0.007]
[1739900479982,0.30847,94655.0,94654.0,0.0003404]
[1739900480212,0.30847,94655.0,94654.0,0.0073404]
[1739900480418,0.31094364,94655.0,94654.0,0.0073404]
[1739900480531,0.31094364,94655.0,94654.0,0.0003404]
[1739900480742,0.15247364,94655.0,94654.0,0.0003404]
[1739900481141,0.20061207,94680.0,94654.0,0.0003404]
[1739900481142,0.211282,94660.0,94654.0,0.0003404]
[1739900481345,0.00206992,94655.0,94654.0,0.0073404]
[1739900481587,0.21128,94661.0,94654.0,0.0073404]
[1739900481791,0.00232866,94655.0,94654.0,0.0003404]
[1739900482013,0.158469,94656.0,94654.0,0.0003404]
[1739900482205,0.00232765,94655.0,94654.0,0.0003404]
[1739900483059,0.00232765,94655.0,94654.0,0.0073404]
[1739900483262,0.00232765,94655.0,94654.0,0.0003404]
[1739900483679,0.00232765,94655.0,94654.0,0.0073404]
[1739900486303,0.16079765,94655.0,94654.0,0.0073404]
[1739900489307,0.23719765,94655.0,94654.0,0.0073404]
[1739900489513,0.38719765,94655.0,94654.0,0.0073404]
[1739900490327,0.15,94654.0,94633.0,0.0003404]
[1739900490575,0.308505,94634.0,94633.0,0.0003404]
[1739900490981,0.31080408,94634.0,94633.0,0.0003404]
[1739900491588,0.35710408,94634.0,94633.0,0.0003404]
[1739900492327,0.04859908,94634.0,94633.0,0.0003404]
[1739900492528,0.20710408,94634.0,94633.0,0.0003404]
[1739900493193,0.28480408,94634.0,94633.0,0.0003404]
[1739900493346,0.28580408,94634.0,94633.0,0.0073404]
[1739900493550,0.76252328,94634.0,94633.0,0.0073404]
[1739900494180,2.35862328,94634.0,94633.0,0.0073404]
[1739900494946,2.35862328,94634.0,94633.0,4e-07]
[1739900494947,2.63412693,94634.0,94633.0,4e-07]
[1739900495106,1.03802693,94634.0,94633.0,4e-07]
[1739900495687,0.2,94613.0,94610.0,0.0003398]
[1739900495890,0.308543,94611.0,94610.0,0.00047237]
[1739900496278,0.3108208,94611.0,94610.0,0.00047237]
[1739900496505,0.3605208,94611.0,94610.0,0.00047237]
[1739900497350,0.3605208,94611.0,94610.0,0.00547237]
[1739900497801,0.3108208,94611.0,94610.0,0.00547237]
[1739900498667,0.2912208,94611.0,94610.0,0.00547237]
[1739900498976,0.2912208,94611.0,94610.0,0.00047237]
[1739900499139,0.2922208,94611.0,94610.0,0.00247237]
[1739900499542,0.1412208,94611.0,94610.0,0.00047237]
[1739900499742,0.1412208,94611.0,94610.0,0.01025961]
[1739900500044,0.1412208,94611.0,94610.0,0.00247237]
[1739900500563,0.16052849,94611.0,94610.0,0.00047237]
[1739900502110,0.16152849,94611.0,94610.0,0.00047237]
[1739900502286,0.16052849,94611.0,94610.0,0.00047237]
[1739900502487,0.00198549,94611.0,94610.0,0.00047237]
[1739900502686,0.001,94611.0,94610.0,0.00047237]
[1739900502936,0.2,94635.0,94610.0,0.00047237]
[1739900502937,0.2,94635.0,94610.0,0.08402915]
[1739900503266,5.05,94634.0,94611.0,0.00840292]
[1739900503450,5.0517396,94634.0,94612.0,0.00105669]
[1739900503737,5.0517396,94634.0,94611.0,0.00840292]
[1739900503738,0.158533,94617.0,94611.0,0.00840292]
[1739900503942,0.15,94631.0,94611.0,0.00840292]
[1739900504148,0.15,94627.0,94612.0,0.00105668]
[1739900504346,0.158536,94616.0,94613.0,0.0092432]
[1739900504785,0.211376,94618.0,94613.0,0.0092432]
[1739900504995,0.15,94627.0,94613.0,0.0092432]
[1739900505201,0.211307,94649.0,94613.0,0.0092432]
[1739900505402,0.211338,94635.0,94614.0,0.018729]
[1739900505589,0.15,94633.0,94614.0,0.018729]
[1739900505819,0.15,94631.0,94614.0,0.01767228]
[1739900506023,0.15,94631.0,94615.0,0.07725667]
[1739900506228,0.001,94618.0,94615.0,0.07725667]
[1739900506434,0.00174416,94630.0,94615.0,0.07725667]
[1739900506638,0.15,94632.0,94615.0,0.07725667]
[1739900506845,0.158515,94628.0,94616.0,0.01622362]
[1739900507048,0.00174758,94631.0,94616.0,0.01622362]
[1739900507250,0.211326,94641.0,94616.0,0.01622362]
[1739900507251,0.0017453,94627.0,94617.0,0.00105667]
[1739900507455,0.0458702,94655.0,94617.0,0.00105667]
[1739900507664,0.00174587,94626.0,94618.0,0.01779875]
[1739900507868,0.158513,94630.0,94619.0,0.00105662]
[1739900508076,0.00174254,94625.0,94619.0,0.00105662]
[1739900508322,0.15852,94626.0,94618.0,0.01779875]
[1739900508510,0.15852,94625.0,94618.0,0.01779875]
[1739900508710,0.00174423,94624.0,94619.0,0.01013392]
[1739900508917,0.16026623,94624.0,94619.0,0.01713392]
[1739900509122,0.158523,94623.0,94619.0,0.007]
[1739900509365,0.158523,94623.0,94618.0,0.01779875]
[1739900509612,0.00173852,94623.0,94618.0,0.02479875]
[1739900509804,0.00173852,94623.0,94618.0,0.01779875]
[1739900510055,0.15852,94625.0,94618.0,0.01779875]
[1739900510278,0.00174309,94622.0,94619.0,0.007]
[1739900510472,0.15852,94625.0,94619.0,0.007]
[1739900510630,0.00174252,94621.0,94619.0,0.01713392]
[1739900510833,0.15852,94625.0,94619.0,0.01713392]
[1739900511057,0.00174195,94620.0,94619.0,0.01713392]
[1739900511261,0.158523,94623.0,94619.0,0.01713392]
[1739900511469,0.211352,94629.0,94620.0,0.01114731]
[1739900511621,0.00174477,94622.0,94620.0,0.01114731]
[1739900511829,0.158523,94623.0,94620.0,0.01114731]
[1739900512033,0.0017442,94621.0,94620.0,0.01114731]
[1739900512300,0.159523,94623.0,94620.0,0.01114731]
[1739900512621,0.159523,94623.0,94618.0,0.02479875]
[1739900512622,0.001,94623.0,94621.0,0.10250365]
[1739900512832,0.0017396,94622.0,94621.0,0.15150365]
[1739900513027,0.211304,94651.0,94621.0,0.15214504]
[1739900513231,0.158499,94638.0,94621.0,0.15214504]
[1739900513405,0.15,94638.0,94621.0,0.15050365]
[1739900513615,0.00174301,94637.0,94622.0,0.02515024]
[1739900513820,0.158513,94630.0,94622.0,0.02515024]
[1739900514355,0.0017453,94629.0,94622.0,0.02515024]
[1739900514542,0.369801,94645.0,94623.0,0.01934526]
[1739900514721,0.02017,94680.0,94623.0,0.01934526]
[1739900514722,0.00174073,94628.0,94623.0,0.01934526]
[1739900514927,0.15851,94632.0,94623.0,0.01934526]
[1739900515123,0.00174359,94627.0,94624.0,0.01768489]
[1739900515307,0.158511,94631.0,94624.0,0.01768489]
[1739900515502,0.0017453,94630.0,94624.0,0.01768489]
[1739900515831,0.158512,94630.0,94624.0,0.01768489]
[1739900516227,0.0017453,94629.0,94625.0,0.0782]
[1739900516408,0.0017453,94629.0,94626.0,0.02533885]
[1739900516598,0.158513,94629.0,94625.0,0.0782]
[1739900516800,0.00174188,94628.0,94625.0,0.0782]
[1739900517008,0.158513,94629.0,94625.0,0.0782]
[1739900517226,0.00174416,94627.0,94625.0,0.0782]
[1739900517431,0.158513,94629.0,94625.0,0.0782]
[1739900517679,0.00174359,94626.0,94625.0,0.0782]
[1739900517889,0.158512,94630.0,94625.0,0.0782]
[1739900518123,0.211318,94644.0,94625.0,0.10107036]
[1739900518124,0.15851,94631.0,94625.0,0.10107036]
[1739900518330,0.16025673,94630.0,94625.0,0.10107036]
[1739900518778,0.00174473,94630.0,94625.0,0.0852]
[1739900518993,0.158512,94630.0,94625.0,0.0852]
[1739900519200,0.00174688,94629.0,94625.0,0.0782]
[1739900519428,0.158511,94631.0,94625.0,0.0852]
[1739900519636,0.00174859,94628.0,94625.0,0.0852]
[1739900519864,0.158518,94627.0,94625.0,0.0852]
[1739900520071,0.00175147,94627.0,94625.0,0.0852]
[1739900520271,0.158518,94626.0,94625.0,0.0782]
[1739900520546,0.211329,94639.0,94625.0,0.0782]
[1739900520833,0.15,94648.0,94615.0,0.28779931]
[1739900520834,0.00175067,94626.0,94615.0,0.28779931]
[1739900521050,0.158535,94616.0,94615.0,0.28779931]
[1739900521486,0.00154932,94616.0,94615.0,0.28779931]
[1739900521929,0.158535,94616.0,94615.0,0.28779931]
[1739900522110,0.16008432,94616.0,94615.0,0.28779931]
[1739900522890,0.16008432,94616.0,94615.0,0.29479931]
[1739900523128,0.16008432,94616.0,94615.0,0.28779931]
[1739900523371,0.16008432,94616.0,94615.0,0.29479931]
[1739900524206,0.00154932,94616.0,94615.0,0.29479931]
[1739900524417,0.158535,94616.0,94615.0,0.29479931]
[1739900524620,0.16009177,94616.0,94615.0,0.29479931]
[1739900525032,0.16009177,94616.0,94615.0,0.32436052]
[1739900525401,0.16009177,94616.0,94615.0,0.29479931]
[1739900525602,0.158535,94616.0,94615.0,0.29479931]
[1739900525808,0.158535,94616.0,94615.0,0.007]
[1739900526204,0.308535,94616.0,94615.0,0.007]
[1739900528549,0.0457,94636.0,94615.0,0.007]
[1739900528752,0.15853,94620.0,94616.0,0.00064172]
[1739900528962,0.0457,94636.0,94615.0,0.007]
[1739900529164,0.7148,94635.0,94617.0,0.0006419]
[1739900529369,0.211342,94633.0,94618.0,0.05317246]
[1739900529581,0.158518,94626.0,94618.0,0.05317246]
[1739900529795,0.158522,94624.0,94619.0,0.00064169]
[1739900530003,0.158522,94624.0,94619.0,0.02160616]
[1739900530004,0.001,94620.0,94619.0,0.02160616]
[1739900530415,0.001,94620.0,94619.0,0.12410981]
[1739900530617,0.001,94620.0,94619.0,0.28328089]
[1739900530796,0.001,94620.0,94619.0,0.28263981]
[1739900530999,0.001,94620.0,94619.0,0.30423405]
[1739900531201,0.001,94620.0,94619.0,0.38133405]
[1739900531422,0.15,94640.0,94622.0,0.211366]
[1739900531638,0.0817702,94674.0,94623.0,0.2522394]
[1739900531841,0.15849,94643.0,94624.0,0.28779931]
[1739900532044,0.15,94654.0,94625.0,0.10314489]
[1739900532249,0.158485,94646.0,94629.0,0.158513]
[1739900532453,0.0001702,94655.0,94631.0,0.0786]
[1739900532658,0.0001702,94655.0,94633.0,0.08450719]
[1739900532861,0.0001702,94655.0,94646.0,0.158484]
[1739900533069,0.0001702,94655.0,94651.0,0.158475]
[1739900533278,0.0001702,94655.0,94652.0,0.10314404]
[1739900533480,0.0001702,94655.0,94653.0,0.06830513]
[1739900533680,0.0001702,94655.0,94654.0,0.00064046]
[1739900534056,0.0001702,94655.0,94653.0,0.17080878]
[1739900534280,0.0001702,94655.0,94654.0,0.54941451]
[1739900534459,0.0001702,94655.0,94654.0,0.39030296]
[1739900534802,0.0001702,94655.0,94654.0,0.43975754]
[1739900535801,0.0001702,94655.0,94654.0,0.59822854]
[1739900536012,0.0001702,94655.0,94654.0,0.43975754]
[1739900536531,0.0001702,94655.0,94654.0,0.44675754]
[1739900536741,0.0001702,94655.0,94654.0,0.68412854]
[1739900538361,0.0001702,94655.0,94654.0,0.67712854]
[1739900538562,0.0001702,94655.0,94654.0,0.68412854]
[1739900538765,0.0001702,94655.0,94654.0,0.67712854]
[1739900539255,0.0001702,94655.0,94654.0,0.68412854]
[1739900539459,0.0001702,94655.0,94654.0,0.51865754]
[1739900539662,0.0001702,94655.0,94654.0,0.52565754]
[1739900540065,0.0001702,94655.0,94654.0,0.51865754]
[1739900540462,0.0001702,94655.0,94654.0,0.52565754]
[1739900542010,0.0001702,94655.0,94654.0,0.51865754]
[1739900542216,0.0001702,94655.0,94654.0,0.67712854]
[1739900542501,0.0001702,94655.0,94654.0,0.68412854]
[1739900542629,0.0001702,94655.0,94654.0,0.67712854]
[1739900543076,0.0001702,94655.0,94654.0,0.52565754]
[1739900543279,0.0001702,94655.0,94654.0,0.51865754]
[1739900543731,0.0001702,94655.0,94654.0,0.52565754]
[1739900544807,0.0001702,94655.0,94654.0,0.28779931]
[1739900544973,0.1586402,94655.0,94654.0,0.28779931]
[1739900545169,0.1586402,94655.0,94654.0,0.29479931]
[1739900545487,0.1586402,94655.0,94654.0,0.28779931]
[1739900545685,0.1586402,94655.0,94636.0,0.0759]
[1739900545686,0.1585,94637.0,94636.0,0.0759]
[1739900545890,0.158494,94641.0,94636.0,0.14476962]
[1739900546144,0.158492,94642.0,94636.0,0.10250365]
[1739900546513,0.211295,94654.0,94636.0,0.10250365]
[1739900546678,0.158488,94645.0,94636.0,0.10250365]
[1739900546912,0.158488,94644.0,94636.0,0.10250365]
[1739900547342,0.15849,94643.0,94636.0,0.10250365]
[1739900547545,0.158492,94642.0,94636.0,0.10250365]
[1739900547765,0.211315,94646.0,94636.0,0.10250365]
[1739900547968,0.15849,94643.0,94636.0,0.10250365]
[1739900548178,0.211295,94654.0,94636.0,0.10250365]
[1739900548390,0.15849,94644.0,94636.0,0.10950365]
[1739900548588,0.15,94649.0,94637.0,0.0390303]
[1739900548795,0.211309,94648.0,94637.0,0.0390303]
[1739900548993,0.15,94649.0,94637.0,0.0390303]
[1739900549195,0.361307,94649.0,94637.0,0.0390303]
[1739900549350,0.211309,94648.0,94636.0,0.10950365]
[1739900549552,0.15,94649.0,94636.0,0.10950365]
[1739900549754,0.15,94649.0,94636.0,0.10250365]
[1739900550030,0.211298,94653.0,94637.0,0.007]
[1739900550246,0.211298,94653.0,94638.0,0.0397303]
[1739900550460,0.158491,94643.0,94638.0,0.0397303]
[1739900550653,0.15849,94643.0,94638.0,0.0397303]
[1739900551124,0.211308,94649.0,94638.0,0.0397303]
[1739900551328,0.15849,94644.0,94638.0,0.0397303]
[1739900551509,0.211286,94659.0,94638.0,0.0397303]
[1739900551720,0.211307,94649.0,94639.0,0.030774]
[1739900551926,0.15,94667.0,94639.0,0.030774]
[1739900551927,0.211314,94646.0,94639.0,0.030774]
[1739900552133,0.15,94658.0,94638.0,0.0467303]
[1739900552339,0.15,94649.0,94638.0,0.0467303]
[1739900552554,0.158493,94641.0,94638.0,0.0397303]
[1739900552759,0.15,94651.0,94638.0,0.007]
[1739900552958,0.158493,94642.0,94636.0,0.10250365]
[1739900553352,0.211319,94644.0,94636.0,0.10250365]
[1739900553558,0.15,94656.0,94636.0,0.10250365]
[1739900553756,0.158488,94645.0,94637.0,0.0390303]
[1739900554366,0.158491,94643.0,94639.0,0.007]
[1739900554587,0.158491,94643.0,94637.0,0.0390303]
[1739900554821,0.15849,94643.0,94637.0,0.0390303]
[1739900554960,0.15,94667.0,94638.0,0.007]
[1739900555162,0.1585,94637.0,94636.0,0.10250365]
[1739900555351,0.158498,94638.0,94636.0,0.10250365]
[1739900555548,0.158496,94640.0,94636.0,0.10950365]
[1739900555776,0.2,94658.0,94636.0,0.10250365]
[1739900555979,0.35,94658.0,94636.0,0.10250365]
[1739900556234,0.211322,94642.0,94637.0,0.007]
[1739900556408,0.158495,94640.0,94637.0,0.007]
[1739900556611,0.158497,94639.0,94637.0,0.007]
[1739900557339,0.158498,94638.0,94637.0,0.007]
[1739900557512,0.158508,94632.0,94631.0,0.28779931]
[1739900557718,0.158508,94632.0,94631.0,0.28793188]
[1739900559026,0.158508,94632.0,94631.0,0.29493188]
[1739900560335,0.158508,94632.0,94631.0,0.33226507]
[1739900561903,0.158508,94632.0,94631.0,0.29493188]
[1739900562547,0.211329,94639.0,94631.0,0.29493188]
[1739900562697,0.158507,94633.0,94631.0,0.29493188]
[1739900562906,0.211337,94636.0,94631.0,0.29493188]
[1739900563084,0.158507,94633.0,94631.0,0.29493188]
[1739900563286,0.158507,94633.0,94632.0,0.03733319]
[1739900564238,0.001,94636.0,94635.0,0.158503]
[1739900564452,0.211271,94665.0,94635.0,0.10314454]
[1739900564663,0.211313,94647.0,94636.0,0.39030296]
[1739900564857,0.15,94659.0,94636.0,0.44484392]
[1739900565268,0.211302,94651.0,94636.0,0.44484392]
[1739900565485,0.15,94659.0,94636.0,0.44484392]
[1739900565887,0.001,94647.0,94636.0,0.45184392]
[1739900566104,0.211313,94646.0,94636.0,0.45184392]
[1739900566314,0.158498,94638.0,94637.0,0.05005765]
[1739900566444,0.158498,94638.0,94636.0,0.39630296]
[1739900566646,0.158495,94640.0,94636.0,0.39630296]
[1739900567047,0.211318,94644.0,94636.0,0.38930296]
[1739900567254,0.21132,94643.0,94636.0,0.39630296]
[1739900567696,0.01655582,94645.0,94636.0,0.43678651]
[1739900567912,0.15849,94643.0,94636.0,0.44378651]
[1739900568111,0.22787182,94645.0,94636.0,0.44378651]
[1739900568310,0.15849,94643.0,94636.0,0.43678651]
[1739900568521,0.22787182,94645.0,94636.0,0.44378651]
[1739900568690,0.15,94652.0,94636.0,0.39664336]
[1739900569336,0.158493,94642.0,94636.0,0.39664336]
[1739900570011,0.158493,94642.0,94636.0,0.38964336]
[1739900570212,0.211302,94651.0,94637.0,0.05482879]
[1739900570433,0.195,94669.0,94637.0,0.05482879]
[1739900570661,0.158492,94642.0,94637.0,0.05482879]
[1739900571480,0.211316,94645.0,94637.0,0.05482879]
[1739900571682,0.158492,94642.0,94638.0,0.04446047]
[1739900571896,0.158492,94642.0,94636.0,0.38964336]
[1739900572460,0.211313,94646.0,94636.0,0.38964336]
[1739900572658,0.158493,94642.0,94636.0,0.38964336]
[1739900572886,0.1501702,94655.0,94636.0,0.38964336]
[1739900573088,0.158494,94641.0,94637.0,0.03897759]
[1739900573346,0.158494,94641.0,94637.0,0.04597759]
[1739900573556,0.0001702,94655.0,94636.0,0.38964336]
[1739900573781,0.1585,94637.0,94636.0,0.28713971]
[1739900573913,0.158497,94639.0,94636.0,0.29413971]
[1739900574115,0.211324,94642.0,94636.0,0.28713971]
[1739900574321,0.1585,94637.0,94636.0,0.28713971]
[1739900574682,0.1585,94637.0,94636.0,0.32370694]
[1739900574838,0.1585,94637.0,94636.0,0.28713971]
[1739900575039,0.3085,94637.0,94636.0,0.29413971]
[1739900575595,0.15,94637.0,94636.0,0.29413971]
[1739900575991,0.3085,94637.0,94636.0,0.29413971]
[1739900576175,0.1585,94637.0,94636.0,0.29413971]
[1739900576777,0.1585,94637.0,94636.0,0.28713971]
[1739900576983,0.1585,94637.0,94636.0,0.31586694]
[1739900577180,0.1585,94637.0,94636.0,0.32286694]
[1739900578531,0.01655739,94641.0,94636.0,0.32286694]
[1739900578532,0.01655739,94641.0,94637.0,0.0793]
[1739900578710,0.01655739,94641.0,94638.0,0.00064116]
[1739900578909,0.0001702,94655.0,94638.0,0.00064116]
[1739900579160,0.158492,94642.0,94637.0,0.0793]
[1739900579501,0.158494,94641.0,94638.0,0.05320823]
[1739900579707,0.211302,94651.0,94638.0,0.05320823]
[1739900579880,0.158497,94639.0,94637.0,0.0793]
[1739900580084,0.158495,94640.0,94637.0,0.0793]
[1739900580321,0.158498,94638.0,94637.0,0.0793]
[1739900580528,0.158498,94638.0,94637.0,0.007]
[1739900580711,0.1585,94637.0,94636.0,0.28713971]
[1739900581274,0.1585,94637.0,94636.0,0.0003404]
[1739900581471,0.3085,94637.0,94636.0,0.0003404]
[1739900583148,0.3085,94637.0,94636.0,0.0073404]
[1739900583531,0.3085,94637.0,94636.0,0.0003404]
[1739900583706,0.21133,94639.0,94636.0,0.0073404]
[1739900583913,0.1585,94637.0,94636.0,0.0073404]
[1739900586888,0.15982092,94637.0,94636.0,0.0073404]
[1739900587034,0.25767642,94637.0,94636.0,0.0073404]
[1739900587236,0.87686613,94637.0,94636.0,0.0073404]
[1739900587440,0.87686613,94637.0,94636.0,0.0003404]
[1739900587866,0.87686613,94637.0,94636.0,0.0073404]
[1739900588169,0.87686613,94637.0,94636.0,0.0003404]
[1739900588573,0.87686613,94637.0,94636.0,0.0073404]
[1739900588750,0.97936978,94637.0,94636.0,0.0073404]
[1739900589149,0.87686613,94637.0,94636.0,0.0073404]
[1739900590159,5.92686613,94637.0,94636.0,0.0073404]
[1739900593069,5.9103061,94637.0,94636.0,0.0073404]
[1739900594032,5.9559061,94637.0,94636.0,4e-07]
[1739900594237,0.93243545,94637.0,94636.0,4e-07]
[1739900594555,0.817108,94632.0,94631.0,9.7e-07]
[1739900594755,1.15964095,94632.0,94631.0,9.7e-07]
[1739900595992,1.176204,94632.0,94631.0,9.7e-07]
[1739900596251,0.35,94619.0,94618.0,5.7e-07]
[1739900596379,0.308537,94615.0,94614.0,5.7e-07]
[1739900596865,0.308543,94611.0,94610.0,3.7e-07]
[1739900597072,0.7189466,94611.0,94610.0,3.7e-07]
[1739900597300,0.76204202,94611.0,94610.0,3.7e-07]
[1739900597686,0.78204202,94611.0,94610.0,3.7e-07]
[1739900598113,1.65812248,94611.0,94610.0,3.7e-07]
[1739900598316,1.76062613,94611.0,94610.0,3.7e-07]
[1739900598522,1.76362613,94611.0,94610.0,3.7e-07]
[1739900599694,1.74062613,94611.0,94610.0,3.7e-07]
[1739900599899,1.76062613,94611.0,94610.0,3.7e-07]
[1739900600105,1.47047917,94611.0,94610.0,3.7e-07]
[1739900600959,1.34797552,94611.0,94610.0,3.7e-07]
[1739900601161,1.34144617,94611.0,94610.0,3.7e-07]
[1739900601411,1.33140945,94611.0,94610.0,3.7e-07]
[1739900601980,1.35140945,94611.0,94610.0,3.7e-07]
[1739900603510,1.3691237,94611.0,94610.0,3.7e-07]
[1739900603738,1.47462735,94611.0,94610.0,3.7e-07]
[1739900603943,1.47162735,94611.0,94610.0,3.7e-07]
[1739900604148,1.47462735,94611.0,94610.0,3.7e-07]
[1739900605287,1.96277431,94611.0,94610.0,3.7e-07]
[1739900605919,1.94206006,94611.0,94610.0,3.7e-07]
[1739900606532,1.93906006,94611.0,94610.0,3.7e-07]
[1739900606709,1.94206006,94611.0,94610.0,3.7e-07]
[1739900609117,1.92206006,94611.0,94610.0,3.7e-07]
[1739900609323,1.94206006,94611.0,94610.0,3.7e-07]
[1739900610803,1.96367473,94611.0,94610.0,3.7e-07]
[1739900611450,1.98024295,94611.0,94610.0,3.7e-07]
[1739900612701,1.96367473,94611.0,94610.0,3.7e-07]
[1739900613837,0.15,94584.0,94581.0,0.0806]
[1739900614024,0.308592,94582.0,94581.0,0.08073259]
[1739900614584,0.308592,94582.0,94581.0,0.08880585]
[1739900614786,0.308592,94582.0,94581.0,0.08073259]
[1739900614995,0.158592,94582.0,94581.0,0.08073259]
[1739900615395,0.159592,94582.0,94581.0,0.08673259]
[1739900615964,0.17616016,94582.0,94581.0,0.08673259]
[1739900616556,0.17516016,94582.0,94581.0,0.08073259]
[1739900616757,0.17516016,94582.0,94581.0,0.00013259]
[1739900616964,0.42211038,94582.0,94581.0,0.00647319]
[1739900617099,0.42211038,94582.0,94581.0,0.00047319]
[1739900617507,0.32716016,94582.0,94581.0,0.00647319]
[1739900620138,0.80413496,94582.0,94581.0,1.9e-07]
[1739900622388,0.82379909,94582.0,94581.0,1.9e-07]
[1739900622760,0.308616,94568.0,94567.0,0.0805404]
[1739900623553,0.32828013,94568.0,94567.0,0.0805404]